{"text_format":"3","workbook":"xlsx","n_sheets":4,"sheets":["Données de base","Budget Financements","Transfert du financement","Exemple"],"not_rendered":{"defined_names":7,"comments":2},"read":"whole","date_system":"1900"}

{"sheet":"Données de base","index":0,"n_rows":22,"n_cols":10,"rows_kept":22,"merged":[[0,1,0,6],[0,9,0,14],[2,2,2,6],[4,2,4,4],[5,2,5,6],[6,4,6,6],[7,4,7,6],[15,3,15,6],[16,3,16,6],[17,3,17,6],[18,3,18,6],[19,2,19,6],[21,2,21,6]]}
[null,"Données de base",{"$nulls":7},"Remarques concernant le traitement par le bénéficiaire du financement :\nVeuillez d’abord renseigner les données de base suivantes avant de remplir l’onglet « Budget Financements ».\nNe remplissez que les cellules sur fond bleu. Toutes les autres cellules sont calculées automatiquement."]
[]
[null,"Nom du bénéficiaire : ",{"$nulls":5},{"$f":"IF(C3=\"Bitte eintragen\",\"- Bitte den Namen Ihres Vereins im Feld <Name des Zuschussempfängers> eintragen; \",\" \")","v":" "}]
[]
[null,"S’agit-il du premier budget ou d’une modification du contrat ?","Sélectionner",null,null,{"$f":"IF(C5=\"Adaptation du contrat\",\"Numéro d’ordre :\",\"\")","v":""},"À sélectionner uniquement en cas d’avenant au contrat",{"$f":"IF(C5=\"Vertragsanpassung\",1,0)","v":0}]
[null,"Titre du projet et numéro de contrat",{"$nulls":5},{"$f":"IF(C6=\"Veranstaltung\",1,IF(C6=\"Projekt\",1,0))","v":0}]
[null,"Demandez-vous la prise en charge de vos frais généraux d'administration ?","Sélectionner","Veuillez indiquer le montant des frais généraux administratifs en pourcentage.",{"$nulls":3},{"$f":"IF(C7=\"Ja, anderer Betrag\",1,0)","v":0}]
[null,"Apporterez-vous une contribution (financière) propre à cette mesure ? ","Sélectionner","Montant en EUR",{"$nulls":3},{"$f":"IF(C8=\"Ja, anderer Betrag\",1,0)","v":0}]
[null,"Par combien de contributeurs le projet doit-il être cofinancé (en plus de la GIZ) ?","Sélectionner","Nom du bailleur de fonds externe",null,"Montant des fonds de tiers en EUR"]
[{"$nulls":3},"Nom du bailleur de fonds externe",null,"Montant des fonds de tiers en EUR",null,{"$f":"IF(C10=\"Ja\",1,0)","v":0}]
[{"$nulls":3},"Nom du bailleur de fonds externe",null,"Montant des fonds de tiers en EUR",null,{"$f":"IF(C11=\"Ja\",1,0)","v":0}]
[{"$nulls":3},"Nom du bailleur de fonds externe",null,"Montant des fonds de tiers en EUR"]
[{"$nulls":3},"Nom du bailleur de fonds externe",null,"Montant des fonds de tiers en EUR"]
[{"$nulls":3},"Nom du bailleur de fonds externe",null,"Montant des fonds de tiers en EUR"]
[{"$nulls":3},"Nom du bailleur de fonds externe",null,"Montant des fonds de tiers en EUR"]
[null,"Des fonds doivent-ils être transférés à des bénéficiaires tiers ? (Veuillez noter qu'il ne s'agit pas ici de paiements pour des prestations achetées)","Sélectionner","Il s'agit de vos partenaires qui mettent en œuvre de manière autonome une partie de votre projet avec vous et qui reçoivent en contrepartie le remboursement des frais encourus, dans la mesure où ils sont requis pour la mise en œuvre. Un budget séparé doit être soumis et un examen d'aptitude commerciale et juridique (uniquement les critères : personnalité juridique et utilité publique) doit être effectué par le projet GIZ. "]
[null,"Des achats de médicaments et de pesticides et d'engrais minéraux seront-ils effectués ?  ","Sélectionner","Un processus d’autorisation distinct, interne à la GIZ, est nécessaire."]
[null,"La part des achats de biens matériels est-elle supérieure à 1 000 000 euros ou, dans le cas où le financement représente une valeur contractuelle d’au moins 400 000 euros, est-elle supérieure à 50 % ?","Sélectionner","Un processus d’autorisation distinct, interne à la GIZ, est  nécessaire."]
[null,"Des mesures de construction seront-elles financées ?  ","Sélectionner","Un processus d’autorisation distinct, interne à la GIZ, pourra être nécessaire.  \n"]
[null,"Des bulles d’aide doivent-elles s’afficher dans le budget ? \n« Oui » recommandé pour le traitement\n« Non » recommandé pour une meilleure lisibilité","Oui"]
[]
[null,"Date d'élaboration du budget :"]

{"sheet":"Budget Financements","index":1,"n_rows":198,"n_cols":15,"rows_kept":198,"merged":[[0,0,0,8],[0,14,0,23],[2,14,2,23],[3,1,3,7],[3,8,3,9],[4,3,4,7],[4,9,168,9],[42,3,42,7],[43,4,43,6],[44,4,44,6],[45,4,45,6],[46,4,46,6],[47,4,47,6],[48,4,48,6],[49,4,49,6],[50,4,50,6],[51,4,51,6],[52,4,52,6],[53,4,53,6],[54,4,54,6],[55,4,55,6],[56,4,56,6],[57,4,57,6],[58,4,58,6],[59,4,59,6],[60,4,60,6],[61,4,61,6],[62,4,62,6],[63,4,63,6],[64,4,64,6],[65,4,65,6],[66,4,66,6],[67,4,67,6],[68,4,68,6],[69,4,69,6],[70,4,70,6],[71,4,71,6],[72,3,72,7],[73,4,73,6],[74,4,74,6],[75,4,75,6],[76,4,76,6],[77,4,77,6],[78,4,78,6],[79,4,79,6],[80,4,80,6],[81,4,81,6],[82,4,82,6],[83,4,83,6],[84,4,84,6],[85,4,85,6],[86,4,86,6],[87,4,87,6],[88,4,88,6],[89,4,89,6],[90,4,90,6],[91,4,91,6],[92,4,92,6],[93,4,93,6],[94,4,94,6],[95,4,95,6],[96,4,96,6],[97,4,97,6],[98,4,98,6],[99,4,99,6],[100,4,100,6],[101,3,101,7],[102,4,102,6],[103,4,103,6],[104,4,104,6],[105,4,105,6],[106,4,106,6],[107,4,107,6],[108,4,108,6],[109,4,109,6],[110,4,110,6],[111,4,111,6],[112,4,112,6],[113,4,113,6],[114,4,114,6],[115,4,115,6],[116,4,116,6],[117,4,117,6],[118,4,118,6],[119,4,119,6],[120,4,120,6],[121,4,121,6],[122,4,122,6],[123,4,123,6],[124,4,124,6],[125,4,125,6],[126,4,126,6],[127,4,127,6],[128,4,128,6],[129,3,129,7],[130,4,130,6],[131,4,131,6],[132,4,132,6],[133,4,133,6],[134,4,134,6],[135,4,135,6],[136,4,136,6],[137,4,137,6],[138,4,138,6],[139,4,139,6],[140,4,140,6],[141,4,141,6],[142,4,142,6],[143,4,143,6],[144,4,144,6],[145,4,145,6],[146,4,146,6],[147,4,147,6],[148,4,148,6],[149,4,149,6],[150,4,150,6],[151,3,151,7],[162,3,162,7],[168,1,168,7],[169,3,169,7],[172,3,172,7],[180,3,180,7],[189,1,189,7],[189,8,189,9],[191,1,191,10],[193,1,193,9],[194,1,194,9],[195,1,195,9],[197,1,197,9]]}
[{"$f":"IF('Données de base'!C3=\"\",\"Veuillez renseigner toutes les données de base.\",CONCATENATE(\"Budget /Plan de financement - Annexe 1\",CHAR(10),'Données de base'!C3,\" - \",'Données de base'!C6,\"\",'Données de base'!E6,\"\",IF(L4=\"VE\",CONCATENATE(\" - \",'Données de base'!G5,\" Avenant\",\"\"),\"\")))","v":"Veuillez renseigner toutes les données de base."},{"$nulls":8},{"$f":"'Données de base'!C22","v":"00:00:00"},{"$nulls":3},"Pas de modification","Remarques concernant le traitement :\nVeuillez d’abord renseigner les données de base avant de remplir l’onglet « Budget ».\nDans l’onglet « Budget », ne remplissez que les cellules sur fond bleu. Toutes les autres cellules sont calculées automatiquement."]
[{"$nulls":9},"2023-08",{"$nulls":3},"modification"]
[null,"Description","Code","Quantité / Nombre ","Unité (p. ex. personne, véhicule, salle, etc.)","Quantité / Nombre","Unité (p. ex. mois, jour, forma-tion, etc.","Montant unitaire éligible en EUR (max.) \n (prix par unité) ","Total \nContribution financière de la GIZ\nen EUR (max.)","Contribution propre / Financement de tiers \nen EUR (max.) ",null,{"$f":"IF($L$4=\"VE\",CONCATENATE(\"En cas d'avenants:\",CHAR(10),\"cette ligne budgétaire a-t-elle été modifiée ?\"),\"\")","v":""},null,null,"Remarques générales : \nCe format de budget sert de base de décompte. Pour votre usage interne, n’hésitez pas à créer d’autres fichiers contenant des informations plus détaillées.\nTous les postes inscrits au budget doivent également figurer dans la description du projet afin que le lien avec le projet soit visible. \nLe tableau est pourvu de formules qui doivent être conservées.  \nVeuillez vous tenir au format à deux décimales. \nIl est recommandé d’arrondir les unités dans la mesure du possible. Les coûts sont convenus avec une valeur « max. ». "]
[null,{"$f":"IF('Données de base'!C20=\"Oui\",CONCATENATE(\"Remarques: Les cellules sur fond bleu sont remplies par \",IF('Données de base'!C3=\"\",\"le bénéficiaire\",'Données de base'!C3),),\"\")","v":"Remarques: Les cellules sur fond bleu sont remplies par le bénéficiaire"},{"$nulls":6},{"$f":"IF('Données de base'!C20=\"Oui\",\"Remarques: Les cellules sont calculées automatiquement.\",\"\")","v":"Remarques: Les cellules sont calculées automatiquement."},null,null,{"$f":"IF('Données de base'!C5=\"Adaptation du contrat\",\"VE\",\"NOVE\")","v":"NOVE"}]
[1,"Personnel propre (désignation de la fonction)\n(Note 1 : uniquement le personnel de votre organisation ; \nla preuve des coûts de cette ligne budgétaire doit être fournie sous forme de fiches de salaire ou, en cas de financement proportionnel, sous forme de fiches de salaire accompagnées des relevés d'heures correspondants ; \nRemarque 2 : seuls les frais de personnel le (coût de revient - bruts de l'employeur) peuvent être imputés. Les suppléments tels que les charges générales du personnel, calculés au prorata du personnel, ne sont pas éligibles).",null,{"$f":"IF('Données de base'!C20=\"Oui\",CONCATENATE(\"Aide pour remplir: \",Exemple!P5),\"\")","v":"Aide pour remplir: La colonne « Montant unitaire éligible (max.) » doit toujours indiquer le salaire brut mensuel du employeur. Pour les emplois à temps partiel, indiquer le pourcentage à la colonne D. Veuillez indiquer quelles sont les coûts de personnel accessoires qui s’appliquent en vertu de la législation dans votre pays. En principe, les cotisations sociales et les paiements convenus dans le contrat de travail ou la convention collective peuvent être financés (les gratifications ou les primes d’intéressement au bénéfice sont en revanche exclues). Les coûts accessoires d’une autre nature doivent être discutés et vérifiés avant l’établissement du contrat et faire l’objet d’un commentaire dans la ligne budgétaire. Les contrats portant sur des petits boulots (« mini-jobs ») ou des jobs d’étudiant sont à affecter au poste Coûts de personnel, même s’il n’y a pas de cotisations sociales à payer.                                                                                                                                                                                         Si plusieurs personnes doivent être financées au prorata (p. ex. 3 personnes à raison de 75 %), veuillez augmenter le nombre de mois en conséquence et inscrire le nombre de personnes dans la description de la ligne budgétaire."},{"$nulls":4},{"$f":"SUM(I6:I42)","v":0},"Une prise en charge partielle des lignes budgétaires n'est pas possible pour la GIZ, à l’exception des lignes budgétaires principales  « coûts de personnel », qui peuvent être exprimés en pourcentage, ainsi que des « coûts locaux du projet au prorata ».\n\nLes autres coûts qui surviennent dans le cadre de la mise en œuvre du projet et qui ne doivent pas être pris en charge par la GIZ sont calculés séparément. Soit en tant que contribution propre, soit, si cela est pertinent, en tant que contribution contribution d'un tiers.",null,{"$f":"IF(L4=\"VE\",\"À NOTER . La GIZ ne peut pas prendre en charge les coûts dus à l'inflation.\",\"\")","v":""}]
[{"$nulls":4},"personne ",null,"mois ",null,{"$f":"ROUND(D6*F6*H6,2)","v":0},null,null,"Pas de modification"]
[{"$nulls":4},"personne ",null,"mois ",null,{"$f":"ROUND(D7*F7*H7,2)","v":0},null,null,"Pas de modification"]
[{"$nulls":4},"personne ",null,"mois ",null,0,null,null,"Pas de modification"]
[{"$nulls":4},"personne ",null,"mois ",null,{"$f":"ROUND(D9*F9*H9,2)","v":0},null,null,"Pas de modification"]
[{"$nulls":4},"personne ",null,"mois ",null,0,null,null,"Pas de modification"]
[{"$nulls":4},"personne ",null,"mois ",null,0,null,null,"Pas de modification"]
[{"$nulls":4},"personne ",null,"Mois ",null,0,null,null,"Pas de modification"]
[{"$nulls":4},"personne ",null,"mois ",null,0,null,null,"Pas de modification"]
[{"$nulls":4},"personne ",null,"mois ",null,0,null,null,"Pas de modification"]
[{"$nulls":4},"personne ",null,"mois ",null,0,null,null,"Pas de modification"]
[{"$nulls":4},"personne ",null,"mois ",null,0,null,null,"Pas de modification"]
[{"$nulls":4},"personne ",null,"mois ",null,0,null,null,"Pas de modification"]
[{"$nulls":4},"personne ",null,"mois ",null,0,null,null,"Pas de modification"]
[{"$nulls":4},"personne ",null,"mois ",null,0,null,null,"Pas de modification"]
[{"$nulls":4},"personne ",null,"mois ",null,0,null,null,"Pas de modification"]
[{"$nulls":4},"personne ",null,"mois ",null,0,null,null,"Pas de modification"]
[{"$nulls":4},"personne ",null,"mois ",null,0,null,null,"Pas de modification"]
[{"$nulls":4},"personne ",null,"mois ",null,0,null,null,"Pas de modification"]
[{"$nulls":4},"personne ",null,"mois ",null,0,null,null,"Pas de modification"]
[{"$nulls":4},"personne ",null,"mois ",null,0,null,null,"Pas de modification"]
[{"$nulls":4},"personne ",null,"mois ",null,0,null,null,"Pas de modification"]
[{"$nulls":4},"personne ",null,"mois ",null,0,null,null,"Pas de modification"]
[{"$nulls":4},"personne ",null,"Mois ",null,0,null,null,"Pas de modification"]
[{"$nulls":4},"personne ",null,"mois ",null,0,null,null,"Pas de modification"]
[{"$nulls":4},"personne ",null,"mois ",null,0,null,null,"Pas de modification"]
[{"$nulls":4},"personne ",null,"mois ",null,0,null,null,"Pas de modification"]
[{"$nulls":4},"personne ",null,"mois ",null,0,null,null,"Pas de modification"]
[{"$nulls":4},"personne ",null,"mois ",null,0,null,null,"Pas de modification"]
[{"$nulls":4},"personne ",null,"mois ",null,0,null,null,"Pas de modification"]
[{"$nulls":4},"personne ",null,"mois ",null,{"$f":"ROUND(D35*F35*H35,2)","v":0},null,null,"Pas de modification"]
[{"$nulls":4},"personne ",null,"mois ",null,0,null,null,"Pas de modification"]
[{"$nulls":4},"personne ",null,"mois ",null,0,null,null,"Pas de modification"]
[{"$nulls":4},"personne ",null,"mois ",null,0,null,null,"Pas de modification"]
[{"$nulls":4},"personne ",null,"mois ",null,0,null,null,"Pas de modification"]
[{"$nulls":4},"personne ",null,"mois ",null,0,null,null,"Pas de modification"]
[{"$nulls":4},"personne ",null,"mois ",null,0,null,null,"Pas de modification"]
[{"$nulls":4},"personne ",null,"mois ",null,0,null,null,"Pas de modification"]
[2,"Achat de prestations des services externes",null,{"$f":"IF('Données de base'!C20=\"Oui\",CONCATENATE(\"Aide pour remplir: \",Exemple!P11),\"\")","v":"Aide pour remplir: Indiquer le contenu de la prestation ; ne pas donner les détails du contrat (heures de travail, etc) ; ne mentionner que le nombre de contrats et la valeur prévue (les directives applicables à la passation de marchés citées dans les clauses du contrat doivent être respectées !) ; utiliser une ligne budgétaire par contrat ; tous les coûts occasionnés dans le cadre de l’exécution des prestations relevant d’un contrat de prestation de services (tels que formations, voyages, etc.) sont regroupés sur une ligne du budget.                                                                                                                                                                                                              Événements : les prestations fournies par le même prestataire doivent être regroupées sur une ligne du budget. (P. ex. : si la restauration et le site de l’événement sont proposés par un même hôtel, les frais correspondants sont à inscrire sur une ligne, et si les nuitées sont réservées dans un autre hôtel, ces frais doivent figurer sur une autre ligne). Les recettes que le bénéficiaire perçoit dans le cadre de l’événement ne peuvent pas être financées à partir du contrat (p. ex., loyer au titre de la location de ses propres locaux). Seuls sont financés les coûts qui peuvent être vraiment justifiés."},{"$nulls":4},{"$f":"SUM(I44:I72)","v":0}]
[{"$nulls":4},"contrat ",{"$nulls":3},{"$f":"ROUND(D44*H44,2)","v":0},null,null,"Pas de modification"]
[{"$nulls":4},"contrat ",{"$nulls":3},{"$f":"ROUND(D45*H45,2)","v":0},null,null,"Pas de modification"]
[{"$nulls":4},"contrat ",{"$nulls":3},0,null,null,"Pas de modification"]
[{"$nulls":4},"contrat ",{"$nulls":3},0,null,null,"Pas de modification"]
[{"$nulls":4},"contrat ",{"$nulls":3},0,null,null,"Pas de modification"]
[{"$nulls":4},"contrat ",{"$nulls":3},0,null,null,"Pas de modification"]
[{"$nulls":4},"contrat ",{"$nulls":3},{"$f":"ROUND(D50*H50,2)","v":0},null,null,"Pas de modification"]
[{"$nulls":4},"contrat ",{"$nulls":3},0,null,null,"Pas de modification"]
[{"$nulls":4},"contrat ",{"$nulls":3},0,null,null,"Pas de modification"]
[{"$nulls":4},"contrat ",{"$nulls":3},0,null,null,"Pas de modification"]
[{"$nulls":4},"contrat ",{"$nulls":3},0,null,null,"Pas de modification"]
[{"$nulls":4},"contrat ",{"$nulls":3},0,null,null,"Pas de modification"]
[{"$nulls":4},"contrat ",{"$nulls":3},0,null,null,"Pas de modification"]
[{"$nulls":4},"contrat ",{"$nulls":3},0,null,null,"Pas de modification"]
[{"$nulls":4},"contrat ",{"$nulls":3},0,null,null,"Pas de modification"]
[{"$nulls":4},"contrat ",{"$nulls":3},0,null,null,"Pas de modification"]
[{"$nulls":4},"contrat ",{"$nulls":3},0,null,null,"Pas de modification"]
[{"$nulls":4},"contrat ",{"$nulls":3},0,null,null,"Pas de modification"]
[{"$nulls":4},"contrat ",{"$nulls":3},0,null,null,"Pas de modification"]
[{"$nulls":4},"contrat ",{"$nulls":3},0,null,null,"Pas de modification"]
[{"$nulls":4},"contrat ",{"$nulls":3},0,null,null,"Pas de modification"]
[{"$nulls":4},"contrat ",{"$nulls":3},0,null,null,"Pas de modification"]
[{"$nulls":4},"contrat ",{"$nulls":3},0,null,null,"Pas de modification"]
[{"$nulls":4},"contrat ",{"$nulls":3},0,null,null,"Pas de modification"]
[{"$nulls":4},"contrat ",{"$nulls":3},0,null,null,"Pas de modification"]
[{"$nulls":4},"contrat ",{"$nulls":3},0,null,null,"Pas de modification"]
[{"$nulls":4},"contrat ",{"$nulls":3},0,null,null,"Pas de modification"]
[{"$nulls":4},"contrat ",{"$nulls":3},0,null,null,"Pas de modification"]
[{"$nulls":4},"contrat ",{"$nulls":3},0,null,null,"Pas de modification"]
[3,"Frais de transport / de voyage",null,{"$f":"IF('Données de base'!C20=\"Oui\",CONCATENATE(\"Aide pour remplir: \",Exemple!P22),\"\")","v":"Aide pour remplir: Les frais de voyage incluent généralement les frais de transport de tout type, les côuts réel des nuitées, les indemnités journalières de subsistance, les frais de visa. Les autres coûts doivent être indiqués à part.  Le décompte de ces frais est effectué sur la base de factures et/ou des directives du bénéficiaire relatives au remboursement des frais de mission et de déplacement et/ou de prescriptions légales (p. ex. loi fédérale sur les frais de voyage (Bundesreisekostengesetz). Une répartition en différents groupes de personnes n’est pas souhaitable.\n\nVeuillez ne pas mentionner de quantité pour les vols : tout écart nécessiterait l’établissement d’avenants, et le nombre de vols sera vérifié en cas d’audit."},{"$nulls":4},{"$f":"SUM(I74:I101)","v":0}]
[{"$nulls":8},{"$f":"ROUND(D74*H74,2)","v":0},null,null,"Pas de modification"]
[{"$nulls":8},{"$f":"ROUND(D75*H75,2)","v":0},null,null,"Pas de modification"]
[{"$nulls":8},0,null,null,"Pas de modification"]
[{"$nulls":8},0,null,null,"Pas de modification"]
[{"$nulls":8},0,null,null,"Pas de modification"]
[{"$nulls":8},0,null,null,"Pas de modification"]
[{"$nulls":8},0,null,null,"Pas de modification"]
[{"$nulls":8},{"$f":"ROUND(D81*H81,2)","v":0},null,null,"Pas de modification"]
[{"$nulls":8},{"$f":"ROUND(D82*H82,2)","v":0},null,null,"Pas de modification"]
[{"$nulls":8},0,null,null,"Pas de modification"]
[{"$nulls":8},0,null,null,"Pas de modification"]
[{"$nulls":8},{"$f":"ROUND(D85*H85,2)","v":0}]
[{"$nulls":8},{"$f":"ROUND(D86*H86,2)","v":0}]
[{"$nulls":8},0]
[{"$nulls":8},0]
[{"$nulls":8},0]
[{"$nulls":8},0]
[{"$nulls":8},0]
[{"$nulls":8},0]
[{"$nulls":8},0]
[{"$nulls":8},0]
[{"$nulls":8},0,null,null,"Pas de modification"]
[{"$nulls":8},0,null,null,"Pas de modification"]
[{"$nulls":8},0,null,null,"Pas de modification"]
[{"$nulls":8},0,null,null,"Pas de modification"]
[{"$nulls":8},0,null,null,"Pas de modification"]
[{"$nulls":8},0,null,null,"Pas de modification"]
[{"$nulls":8},0,null,null,"Pas de modification"]
[4,"Achat de matériels et d'équipements",null,{"$f":"IF('Données de base'!C20=\"Oui\",CONCATENATE(\"Aide pour remplir: \",TRIM(Exemple!P35)),\"\")","v":"Aide pour remplir: Les biens dont l’achat sera justifié par une seule et même facture doivent être portés sur une ligne du budget. Les matériels informatiques, p. ex., peuvent figurer sur une ligne ; dans ce cas, il faut préciser entre parenthèses les différents biens donc l'achat est prévu. Pour les médicaments et les pesticides et les engrais minéraux, davantage de détails sont nécessaires pour l’obtention de la validation."},{"$nulls":4},{"$f":"SUM(I103:I129)","v":0},null,{"$f":"IF(I180>400000,1,0)+(IF(I102>(I180/2),1,0))","v":0}]
[{"$nulls":8},{"$f":"ROUND(D103*H103,2)","v":0},null,null,"Pas de modification"]
[{"$nulls":8},{"$f":"ROUND(D104*H104,2)","v":0},null,null,"Pas de modification"]
[{"$nulls":8},0,null,null,"Pas de modification"]
[{"$nulls":8},0,null,null,"Pas de modification"]
[{"$nulls":8},{"$f":"ROUND(D107*H107,2)","v":0},null,null,"Pas de modification"]
[{"$nulls":8},0,null,null,"Pas de modification"]
[{"$nulls":8},0,null,null,"Pas de modification"]
[{"$nulls":8},0,null,null,"Pas de modification"]
[{"$nulls":8},0,null,null,"Pas de modification"]
[{"$nulls":8},0,null,null,"Pas de modification"]
[{"$nulls":8},{"$f":"ROUND(D113*H113,2)","v":0}]
[{"$nulls":8},0]
[{"$nulls":8},0]
[{"$nulls":8},0]
[{"$nulls":8},0]
[{"$nulls":8},0]
[{"$nulls":8},0]
[{"$nulls":8},0]
[{"$nulls":8},0]
[{"$nulls":8},0]
[{"$nulls":8},0]
[{"$nulls":8},0,null,null,"Pas de modification"]
[{"$nulls":8},0,null,null,"Pas de modification"]
[{"$nulls":8},0,null,null,"Pas de modification"]
[{"$nulls":8},0,null,null,"Pas de modification"]
[{"$nulls":8},0,null,null,"Pas de modification"]
[{"$nulls":8},0,null,null,"Pas de modification"]
[5,"Autres frais / Consommables",null,{"$f":"IF('Données de base'!C20=\"Oui\",CONCATENATE(\"Aide pour remplir: \",TRIM(Exemple!P46)),\"\")","v":"Aide pour remplir: Veuillez noter que les coûts indirects relèvent de la catégorie des frais administratifs généraux. Seuls des coûts directs peuvent être portés sur les lignes du budget.\nSi des frais de location sont indiqués, seuls les coûts directs, autrement dit les loyers nets, peuvent être calculés. Les frais annexes (charges) sont à prendre en compte comme coûts indirects et à intégrer aux frais administratifs généraux. \nContrairement aux biens matériels, que l’on utilise sur de longues périodes, les consommables sont des biens qui s’épuisent au fur et à mesure de l’usage, comme p. ex. le papier ou les recharges d’encre pour imprimante."},{"$nulls":4},{"$f":"SUM(I131:I151)","v":0}]
[{"$nulls":8},{"$f":"ROUND(D131*H131,2)","v":0},null,null,"Pas de modification"]
[{"$nulls":8},{"$f":"ROUND(D132*H132,2)","v":0},null,null,"Pas de modification"]
[{"$nulls":8},0,null,null,"Pas de modification"]
[{"$nulls":8},0,null,null,"Pas de modification"]
[{"$nulls":8},{"$f":"ROUND(D135*H135,2)","v":0},null,null,"Pas de modification"]
[{"$nulls":8},0,null,null,"Pas de modification"]
[{"$nulls":8},0,null,null,"Pas de modification"]
[{"$nulls":8},0,null,null,"Pas de modification"]
[{"$nulls":8},0,null,null,"Pas de modification"]
[{"$nulls":8},0,null,null,"Pas de modification"]
[{"$nulls":8},0,null,null,"Pas de modification"]
[{"$nulls":8},{"$f":"ROUND(D142*H142,2)","v":0}]
[{"$nulls":8},0]
[{"$nulls":8},0]
[{"$nulls":8},0]
[{"$nulls":8},0]
[{"$nulls":8},0,null,null,"Pas de modification"]
[{"$nulls":8},0,null,null,"Pas de modification"]
[{"$nulls":8},0,null,null,"Pas de modification"]
[{"$nulls":8},0,null,null,"Pas de modification"]
[{"$nulls":8},0,null,null,"Pas de modification"]
[6,"Fonds destinés au soutien direct de tiers destinataires\n(Remarque : cette ligne budgétaire concerne de préférence les contributions en nature à des tiers destinataires. Dans le cas de soutiens financières, il est nécessaire d'indiquer clairement comment les paiements et la réception des paiements seront prouvés. La procédure de sélection des tiers destinataires doit être expliquée en détail dans la description du projet.)",null,{"$f":"IF('Données de base'!C20=\"Oui\",CONCATENATE(\"Aide pour remplir: \",TRIM(Exemple!P57)),\"\")","v":"Aide pour remplir: Veuillez observer la remarque figurant dans la ligne du budget. Il faut s’entendre sur les justificatifs dans le budget et présenter les critères de sélection dans la description du projet. Important : il ne s’agit en l’occurrence que de destinataires à qui profite le projet du bénéficiaire dans le cadre, p. ex., d’une promotion de start-up, d’une promotion d’initiatives, de mesures « espèces contre travail », de concours de promotion, de bourses et autres. Il est nécessaire de s’entendre sur les justificatifs. Concernant les détails, il faut prendre conseil auprès de l'unité en charge de la gestion des contrats."},{"$nulls":4},{"$f":"SUM(I153:I162)","v":0}]
[null,"XXX (Cette ligne budgétaire est décomptée contre : ….)",{"$nulls":6},{"$f":"ROUND(D153*F153*H153,2)","v":0},null,null,"Pas de modification"]
[null,"XXX (Cette ligne budgétaire est décomptée contre : ….)",{"$nulls":6},{"$f":"ROUND(D154*F154*H154,2)","v":0},null,null,"Pas de modification"]
[null,"XXX (Cette ligne budgétaire est décomptée contre : ….)",{"$nulls":6},0,null,null,"Pas de modification"]
[null,"XXX (Cette ligne budgétaire est décomptée contre : ….)",{"$nulls":6},0,null,null,"Pas de modification"]
[null,"XXX (Cette ligne budgétaire est décomptée contre : ….)",{"$nulls":6},0,null,null,"Pas de modification"]
[null,"XXX (Cette ligne budgétaire est décomptée contre : ….)",{"$nulls":6},0,null,null,"Pas de modification"]
[null,"XXX (Cette ligne budgétaire est décomptée contre : ….)",{"$nulls":6},0,null,null,"Pas de modification"]
[null,"XXX (Cette ligne budgétaire est décomptée contre : ….)",{"$nulls":6},0,null,null,"Pas de modification"]
[null,"XXX (Cette ligne budgétaire est décomptée contre : ….)",{"$nulls":6},0,null,null,"Pas de modification"]
[null,"XXX (Cette ligne budgétaire est décomptée contre : ….)",{"$nulls":6},0,null,null,"Pas de modification"]
[7,"Coûts proportionnels du projet qui sont générés localement (p. ex. IT, recherche)",null,{"$f":"IF('Données de base'!C20=\"Oui\",CONCATENATE(\"Aide pour remplir: \",TRIM(Exemple!P62)),\"\")","v":"Aide pour remplir: Cette ligne budgétaire est réservée aux organisations qui disposent d’une répartition ou d’une imputation des frais généraux dans leurs systèmes de comptabilité et peuvent en apporter la preuve en conséquence. Le type de justificatif est fixé pour chaque cas particulier. Un exemple concret est un justificatif exprimé en pourcentage, sur la base des frais généraux et des relevés d’heures.."},{"$nulls":4},{"$f":"SUM(I164:I168)","v":0}]
[{"$nulls":8},{"$f":"ROUND(D164*F164*H164,2)","v":0},null,null,"Pas de modification"]
[{"$nulls":8},{"$f":"ROUND(D165*F165*H165,2)","v":0},null,null,"Pas de modification"]
[{"$nulls":8},0,null,null,"Pas de modification"]
[{"$nulls":8},0,null,null,"Pas de modification"]
[{"$nulls":8},0,null,null,"Pas de modification"]
[null,"Sous-total - coûts directs",{"$nulls":6},{"$f":"I163+I152+I130+I102+I73+I43+I5","v":0}]
[8,"Frais administratifs généraux ",null,{"$f":"IF('Données de base'!C20=\"Oui\",CONCATENATE(\"Aide pour remplir: \",TRIM(Exemple!P66)),\"\")","v":"Aide pour remplir: Les frais administratifs généraux devraient s’élever à 0 % étant donné qu’ils sont normalement pris en charge par le bénéficiaire du financement en tant que contribution propre. Si une telle prise en charge n’est pas possible, la GIZ peut prendre en charge une petite partie des frais administratifs généraux. La nature et le montant des frais sont vérifiés le cas échéant par un·e expert·e-comptable. Si les frais généraux d'administration se rapportent à un plus petit nombre de lignes budgétaires, il est nécessaire d'en informer la gestion des contrats."},{"$nulls":4},{"$f":"I171","v":0}]
[null,"Frais administratifs généraux (pour les lignes budgétaires 1-X)",null,{"$f":"'Données de base'!E7","v":{"v":0,"d":"0%"}},{"$nulls":3},{"$f":"I169","v":{"v":0,"d":"0.00 €"}},{"$f":"ROUND(D171*H171,2)","v":0},null,null,"Pas de modification"]
[null,"Sous-total - Financement de la GIZ (sur présentation de justificatifs - jusqu’à concurrence de - )*\n(coûts directs + frais administratifs généraux)",{"$nulls":6},{"$f":"I169+I170","v":0}]
[9,"Transfert de fonds à des bénéficiaires tiers - un budget détaillé doit être soumis -",null,{"$f":"IF('Données de base'!C20=\"Oui\",CONCATENATE(\"Aide pour remplir: \",TRIM(Exemple!P69)),\"\")","v":"Aide pour remplir: Il s’agit d'un transfert des fonds à un tiers bénéficiare (co-bénéficiaires). Ce sont des partenaires qui mettent en œuvre une partie du projet en toute autonomie. Il faut soumettre un budget séparé, et une évaluation des capacités commerciales et juridiques (portant seulement sur les critères personnalité juridique et statut d’utilité publique) doit être réalisée par le projet de la GIZ."},{"$nulls":4},{"$f":"SUM(I174:I179)","v":0}]
[null,"XYZ (nom du bénéficiaire final) ",null,1,"unité",1,"transfert",null,{"$f":"D174*F174*H174","v":0},null,null,"Pas de modification"]
[null,"XYZ (nom du bénéficiaire final) ",null,1,"unité",1,"transfert",null,0,null,null,"Pas de modification"]
[null,"XYZ (nom du bénéficiaire final) ",null,1,"unité",1,"transfert",null,0,null,null,"Pas de modification"]
[null,"XYZ (nom du bénéficiaire final) ",null,1,"unité",1,"transfert",null,0,null,null,"Pas de modification"]
[null,"XYZ (nom du bénéficiaire final) ",null,1,"unité",1,"transfert",null,0,null,null,"Pas de modification"]
[null,"XYZ (nom du bénéficiaire final) ",null,1,"unité",1,"transfert",null,0,null,"Parts en pourcen-tage ","Pas de modification"]
[null,"Contribution financière de la GIZ (sur présentation de justificatifs - jusqu’à concurrence de)",{"$nulls":6},{"$f":"I172+I173","v":0},null,{"$f":"IFERROR(I180/$I$190,\"\")","v":""}]
[10,"Contribution propre / Financement par les tiers",null,{"$f":"IF('Données de base'!C20=\"Oui\",CONCATENATE(\"Aide pour remplir: \",TRIM(Exemple!P74)),\"\")","v":"Aide pour remplir: N’indiquez ici que la valeur globale de la contribution propre / du financement par des tiers. Une description succincte des cofinancements doit être intégrée à la description du projet."},{"$nulls":5},{"$f":"SUM(J182:J189)","v":0}]
[null,{"$f":"_xlfn.IFS('Données de base'!C8=\"Non\",\"Pas de contribution propre\", 'Données de base'!C8=\"Oui\",'Données de base'!C3, 'Données de base'!C8=\"Sélectionner\", \"Veuillez renseigner toutes les données de base\",TRUE,\"\")","v":"Veuillez renseigner toutes les données de base"},null,1,"unité",1,"contribution ",{"$f":"IF('Données de base'!C8=\"Oui\",'Données de base'!E8,\"\")","v":""},null,{"$f":"H182","v":""},{"$f":"IFERROR(J182/$I$190,\"\")","v":""},"Pas de modification"]
[null,{"$f":"_xlfn.IFS('Données de base'!C9=0,\"Pas de financement par les tiers\",'Données de base'!C9= \"Sélectionner\",\"Veuillez renseigner toutes les données de base\", 'Données de base'!C9>0,'Données de base'!E9,TRUE,\"\")","v":"Veuillez renseigner toutes les données de base"},null,1,"unité",1,"contribution ",{"$f":"_xlfn.IFS('Données de base'!$C$9=\"Sélectionner\", \"\",'Données de base'!$C$9>0,'Données de base'!G9, TRUE,\"\")","v":""},null,"",{"$f":"IFERROR(J183/$I$190,\"\")","v":""},"Pas de modification"]
[null,{"$f":"_xlfn.IFS('Données de base'!C9=0,\"Pas de financement par les tiers\",'Données de base'!C9= \"Sélectionner\",\"Veuillez renseigner toutes les données de base\", 'Données de base'!C9>1,'Données de base'!E10,TRUE,\"\")","v":"Veuillez renseigner toutes les données de base"},null,1,"unité",1,"contribution ",{"$f":"_xlfn.IFS('Données de base'!$C$9=\"Sélectionner\", \"\",'Données de base'!$C$9>1,'Données de base'!G10, TRUE,\"\")","v":""},null,"","","Pas de modification"]
[null,{"$f":"_xlfn.IFS('Données de base'!C9=0,\"Pas de financement par les tiers\",'Données de base'!C9= \"Sélectionner\",\"Veuillez renseigner toutes les données de base\", 'Données de base'!C9>2,'Données de base'!E11,TRUE,\"\")","v":"Veuillez renseigner toutes les données de base"},null,1,"unité",1,"contribution ",{"$f":"_xlfn.IFS('Données de base'!$C$9=\"Sélectionner\", \"\",'Données de base'!$C$9>2,'Données de base'!G11, TRUE,\"\")","v":""},null,"","","Pas de modification"]
[null,{"$f":"_xlfn.IFS('Données de base'!C9=0,\"Pas de financement par les tiers\",'Données de base'!C9= \"Sélectionner\",\"Veuillez renseigner toutes les données de base\", 'Données de base'!C9>3,'Données de base'!E12,TRUE,\"\")","v":"Veuillez renseigner toutes les données de base"},null,1,"unité",1,"contribution ",{"$f":"_xlfn.IFS('Données de base'!$C$9=\"Sélectionner\", \"\",'Données de base'!$C$9>3,'Données de base'!G12, TRUE,\"\")","v":""},null,"","","Pas de modification"]
[null,{"$f":"_xlfn.IFS('Données de base'!C9=0,\"Pas de financement par les tiers\",'Données de base'!C9= \"Sélectionner\",\"Veuillez renseigner toutes les données de base\", 'Données de base'!C9>4,'Données de base'!E13,TRUE,\"\")","v":"Veuillez renseigner toutes les données de base"},null,1,"unité",1,"contribution ",{"$f":"_xlfn.IFS('Données de base'!$C$9=\"Sélectionner\", \"\",'Données de base'!$C$9>4,'Données de base'!G13, TRUE,\"\")","v":""},null,"","","Pas de modification"]
[null,{"$f":"_xlfn.IFS('Données de base'!C9=0,\"Pas de financement par les tiers\",'Données de base'!C9= \"Sélectionner\",\"Veuillez renseigner toutes les données de base\", 'Données de base'!C9>5,'Données de base'!E14,TRUE,\"\")","v":"Veuillez renseigner toutes les données de base"},null,1,"unité",1,"contribution ",{"$f":"_xlfn.IFS('Données de base'!$C$9=\"Sélectionner\", \"\",'Données de base'!$C$9>5,'Données de base'!G14, TRUE,\"\")","v":""},null,"","","Pas de modification"]
[null,{"$f":"_xlfn.IFS('Données de base'!C9=0,\"Pas de financement par les tiers\",'Données de base'!C9= \"Sélectionner\",\"Veuillez renseigner toutes les données de base\", 'Données de base'!C9>6,'Données de base'!E15,TRUE,\"\")","v":"Veuillez renseigner toutes les données de base"},null,1,"unité",1,"contribution ",{"$f":"_xlfn.IFS('Données de base'!$C$9=\"Sélectionner\", \"\",'Données de base'!$C$9>6,'Données de base'!G15, TRUE,\"\")","v":""},null,{"$f":"H189","v":""},{"$f":"IFERROR(J189/$I$190,\"\")","v":""},"Pas de modification"]
[null,"Le budget total du projet à financer : ",{"$nulls":6},{"$f":"I180+J181","v":0},null,{"$f":"SUM(K180:K189)","v":{"v":0,"d":"0.00%"}}]
[]
[null,"* Toutes les lignes budgétaires (à l’exception des frais administratifs généraux) doivent faire l’objet d’un décompte établi sur la base de justificatifs."]
[]
[null,"À noter : dans les cas où des marchés passés pour des services externes et/ou des biens matériels et/ou des fournitures doivent être financés par les fonds de la GIZ, les directives applicables à la passation de marchés spécifiées dans les clauses du contrat doivent être respectées !"]
[]
[null,"Les recettes et les bénéfices du bénéficiaire ne sont pas financés. Les facturations internes entre les unités organisationnelles du bénéficiaire ne sont pas financées."]
[]
[null,"En cas d’avenants : veuillez procéder aux ajustements budgétaires sur la base du dernier budget convenu au contrat et noter les modifications en couleur. La GIZ ne peut pas prendre en charge les coûts dûs aux fluctuations monétaires."]

{"sheet":"Transfert du financement","index":2,"n_rows":124,"n_cols":14,"rows_kept":124,"merged":[[0,3,0,8],[3,1,3,7],[3,8,3,9],[4,3,4,7],[4,9,111,9],[31,3,31,7],[32,4,32,6],[33,4,33,6],[34,4,34,6],[35,4,35,6],[36,4,36,6],[37,4,37,6],[38,4,38,6],[39,4,39,6],[40,4,40,6],[41,4,41,6],[42,4,42,6],[43,4,43,6],[44,4,44,6],[45,4,45,6],[46,4,46,6],[47,4,47,6],[48,4,48,6],[49,3,49,7],[50,4,50,6],[51,4,51,6],[52,4,52,6],[53,4,53,6],[54,4,54,6],[55,4,55,6],[56,4,56,6],[57,4,57,6],[58,4,58,6],[59,4,59,6],[60,4,60,6],[61,4,61,6],[62,4,62,6],[63,4,63,6],[64,4,64,6],[65,4,65,6],[66,3,66,7],[67,4,67,6],[68,4,68,6],[69,4,69,6],[70,4,70,6],[71,4,71,6],[72,4,72,6],[73,4,73,6],[74,4,74,6],[75,4,75,6],[76,4,76,6],[77,4,77,6],[78,4,78,6],[79,4,79,6],[80,4,80,6],[81,4,81,6],[82,4,82,6],[83,3,83,7],[84,4,84,6],[85,4,85,6],[86,4,86,6],[87,4,87,6],[88,4,88,6],[89,4,89,6],[90,4,90,6],[91,4,91,6],[92,4,92,6],[93,4,93,6],[94,4,94,6],[95,4,95,6],[96,4,96,6],[97,4,97,6],[98,4,98,6],[99,4,99,6],[100,3,100,7],[107,3,107,7],[112,3,112,7],[117,1,117,9],[119,1,119,9],[120,1,120,9],[121,1,121,9],[123,1,123,9]]}
[null,"Budget / plan de financement - Annexe 1",null,"Nom du bénéficiaires tiers: ",{"$nulls":5},{"$f":"'Données de base'!C22","v":"00:00:00"},{"$nulls":3},"Keine Änderung"]
[{"$nulls":13},"Änderung"]
[null,"Description","Code ","Quan-tité / Nombre","Unité (p. ex. personne, véhicule, salle, etc.)","Quan-tité / Nombre","Unité (p. ex. mois, jour, forma-tion, etc.","Montant unitaire éligible en EUR (max.) \n (prix par unité) ","Total \nContribution financière de la GIZ\nen EUR (max.)","Contribution propre / Financement de tiers \nen EUR (max.) ",null,{"$f":"IF($L$4=\"VE\",CONCATENATE(\"En cas d'avenants\",CHAR(10),\"cette ligne budgétaire a-t-elle été modifiée ?\"),\"\")","v":""}]
[null,{"$f":"IF('Données de base'!C20=\"Oui\",CONCATENATE(\"Remarques: Les cellules sur fond bleu sont remplies par le bénéficiaire \",\"\"))","v":"Remarques: Les cellules sur fond bleu sont remplies par le bénéficiaire "},{"$nulls":6},{"$f":"IF('Données de base'!C20=\"Oui\",\"Remarques:Les cellules sont calculées automatiquement.\",\"\")","v":"Remarques:Les cellules sont calculées automatiquement."},null,null,{"$f":"IF('Données de base'!C5=\"Adaptation du contrat\",\"VE\",\"NOVE\")","v":"NOVE"}]
[1,"Personnel propre (désignation de la fonction)\n(Note 1 : uniquement le personnel de votre organisation ; \nla preuve des coûts de cette ligne budgétaire doit être fournie sous forme de fiches de salaire ou, en cas de financement proportionnel, sous forme de fiches de salaire accompagnées des relevés d'heures correspondants ; \nRemarque 2 : seuls les frais de personnel le (coût de revient - bruts de l'employeur) peuvent être imputés. Les suppléments tels que les charges générales du personnel, calculés au prorata du personnel, ne sont pas éligibles).",null,{"$f":"IF('Données de base'!C20=\"Oui\",CONCATENATE(\"Aide pour remplir: \",Exemple!P5),\"\")","v":"Aide pour remplir: La colonne « Montant unitaire éligible (max.) » doit toujours indiquer le salaire brut mensuel du employeur. Pour les emplois à temps partiel, indiquer le pourcentage à la colonne D. Veuillez indiquer quelles sont les coûts de personnel accessoires qui s’appliquent en vertu de la législation dans votre pays. En principe, les cotisations sociales et les paiements convenus dans le contrat de travail ou la convention collective peuvent être financés (les gratifications ou les primes d’intéressement au bénéfice sont en revanche exclues). Les coûts accessoires d’une autre nature doivent être discutés et vérifiés avant l’établissement du contrat et faire l’objet d’un commentaire dans la ligne budgétaire. Les contrats portant sur des petits boulots (« mini-jobs ») ou des jobs d’étudiant sont à affecter au poste Coûts de personnel, même s’il n’y a pas de cotisations sociales à payer.                                                                                                                                                                                         Si plusieurs personnes doivent être financées au prorata (p. ex. 3 personnes à raison de 75 %), veuillez augmenter le nombre de mois en conséquence et inscrire le nombre de personnes dans la description de la ligne budgétaire."},{"$nulls":4},{"$f":"SUM(I6:I31)","v":0},"Une prise en charge partielle des lignes budgétaires  n'est pas possible pour la GIZ, à l’exception des frais de « personnel propre» qui peuvent être exprimés en pourcentage ainsi que de la catégorie « Frais de bureau au prorata » . \n\nLes autres coûts qui surviennent dans le cadre de la mise en œuvre du projet et qui ne doivent pas être pris en charge par la GIZ sont calculés séparément. Soit en tant que contribution propre, soit, si cela est pertinent, en tant que contribution contribution d'un tiers. ",{"$f":"IF(SUM(I5,#REF!,I32)>0.4*I115,1,0)","v":{"$error":"#REF!"}},{"$f":"IF(L4=\"VE\",\"À NOTER . La GIZ ne peut pas prendre en charge les coûts dus aux fluctuations monétaires.'Transfert du financement'!K9\",\"\")","v":""}]
[{"$nulls":4},"personne",null,"mois",null,{"$f":"ROUND(D6*F6*H6,2)","v":0},null,null,"Pas de modification"]
[{"$nulls":4},"personne",null,"mois",null,{"$f":"ROUND(D7*F7*H7,2)","v":0},null,null,"Pas de modification"]
[{"$nulls":4},"personne",null,"mois",null,0,null,null,"Pas de modification"]
[{"$nulls":4},"personne",null,"mois",null,0,null,null,"Pas de modification"]
[{"$nulls":4},"personne",null,"mois",null,{"$f":"ROUND(D10*F10*H10,2)","v":0},null,null,"Pas de modification"]
[{"$nulls":4},"personne",null,"mois",null,0,null,null,"Pas de modification"]
[{"$nulls":4},"personne",null,"mois",null,0,null,null,"Pas de modification"]
[{"$nulls":4},"personne",null,"mois",null,0,null,null,"Pas de modification"]
[{"$nulls":4},"personne",null,"mois",null,0,null,null,"Pas de modification"]
[{"$nulls":4},"personne",null,"mois",null,0,null,null,"Pas de modification"]
[{"$nulls":4},"personne",null,"mois",null,0,null,null,"Pas de modification"]
[{"$nulls":4},"personne",null,"mois",null,0,null,null,"Pas de modification"]
[{"$nulls":4},"personne",null,"mois",null,0,null,null,"Pas de modification"]
[{"$nulls":4},"personne",null,"mois",null,0,null,null,"Pas de modification"]
[{"$nulls":4},"personne",null,"mois",null,0,null,null,"Pas de modification"]
[{"$nulls":4},"personne",null,"mois",null,0,null,null,"Pas de modification"]
[{"$nulls":4},"personne",null,"mois",null,0,null,null,"Pas de modification"]
[{"$nulls":4},"personne",null,"mois",null,0,null,null,"Pas de modification"]
[{"$nulls":4},"personne",null,"mois",null,0,null,null,"Pas de modification"]
[{"$nulls":4},"personne",null,"mois",null,0,null,null,"Pas de modification"]
[{"$nulls":4},"personne",null,"mois",null,0,null,null,"Pas de modification"]
[{"$nulls":4},"personne",null,"mois",null,0,null,null,"Pas de modification"]
[{"$nulls":4},"personne",null,"mois",null,0,null,null,"Pas de modification"]
[{"$nulls":4},"personne",null,"mois",null,0,null,null,"Pas de modification"]
[{"$nulls":4},"personne",null,"mois",null,0,null,null,"Pas de modification"]
[{"$nulls":4},"personne",null,"mois",null,0,null,null,"Pas de modification"]
[2,"Achat de prestations des services externes",null,{"$f":"IF('Données de base'!C20=\"Oui\",CONCATENATE(\"Aide pour remplir: \",Exemple!P11),\"\")","v":"Aide pour remplir: Indiquer le contenu de la prestation ; ne pas donner les détails du contrat (heures de travail, etc) ; ne mentionner que le nombre de contrats et la valeur prévue (les directives applicables à la passation de marchés citées dans les clauses du contrat doivent être respectées !) ; utiliser une ligne budgétaire par contrat ; tous les coûts occasionnés dans le cadre de l’exécution des prestations relevant d’un contrat de prestation de services (tels que formations, voyages, etc.) sont regroupés sur une ligne du budget.                                                                                                                                                                                                              Événements : les prestations fournies par le même prestataire doivent être regroupées sur une ligne du budget. (P. ex. : si la restauration et le site de l’événement sont proposés par un même hôtel, les frais correspondants sont à inscrire sur une ligne, et si les nuitées sont réservées dans un autre hôtel, ces frais doivent figurer sur une autre ligne). Les recettes que le bénéficiaire perçoit dans le cadre de l’événement ne peuvent pas être financées à partir du contrat (p. ex., loyer au titre de la location de ses propres locaux). Seuls sont financés les coûts qui peuvent être vraiment justifiés."},{"$nulls":4},{"$f":"SUM(I33:I49)","v":0}]
[{"$nulls":4},"contrat",{"$nulls":3},{"$f":"ROUND(D33*H33,2)","v":0},null,null,"Pas de modification"]
[{"$nulls":4},"contrat",{"$nulls":3},{"$f":"ROUND(D34*H34,2)","v":0},null,null,"Pas de modification"]
[{"$nulls":4},"contrat",{"$nulls":3},0,null,null,"Pas de modification"]
[{"$nulls":4},"contrat",{"$nulls":3},0,null,null,"Pas de modification"]
[{"$nulls":4},"contrat",{"$nulls":3},{"$f":"ROUND(D37*H37,2)","v":0},null,null,"Pas de modification"]
[{"$nulls":4},"contrat",{"$nulls":3},0,null,null,"Pas de modification"]
[{"$nulls":4},"contrat",{"$nulls":3},0,null,null,"Pas de modification"]
[{"$nulls":4},"contrat",{"$nulls":3},0,null,null,"Pas de modification"]
[{"$nulls":4},"contrat",{"$nulls":3},0,null,null,"Pas de modification"]
[{"$nulls":4},"contrat",{"$nulls":3},0,null,null,"Pas de modification"]
[{"$nulls":4},"contrat",{"$nulls":3},0,null,null,"Pas de modification"]
[{"$nulls":4},"contrat",{"$nulls":3},0,null,null,"Pas de modification"]
[{"$nulls":4},"contrat",{"$nulls":3},0,null,null,"Pas de modification"]
[{"$nulls":4},"contrat",{"$nulls":3},0,null,null,"Pas de modification"]
[{"$nulls":4},"contrat",{"$nulls":3},0,null,null,"Pas de modification"]
[{"$nulls":4},"contrat",{"$nulls":3},{"$f":"ROUND(D48*H48,2)","v":0},null,null,"Pas de modification"]
[{"$nulls":4},"contrat",{"$nulls":3},0,null,null,"Pas de modification"]
[3,"Frais de transport / de voyage",null,{"$f":"IF('Données de base'!C20=\"Oui\",CONCATENATE(\"Aide pour remplir: \",Exemple!P22),\"\")","v":"Aide pour remplir: Les frais de voyage incluent généralement les frais de transport de tout type, les côuts réel des nuitées, les indemnités journalières de subsistance, les frais de visa. Les autres coûts doivent être indiqués à part.  Le décompte de ces frais est effectué sur la base de factures et/ou des directives du bénéficiaire relatives au remboursement des frais de mission et de déplacement et/ou de prescriptions légales (p. ex. loi fédérale sur les frais de voyage (Bundesreisekostengesetz). Une répartition en différents groupes de personnes n’est pas souhaitable.\n\nVeuillez ne pas mentionner de quantité pour les vols : tout écart nécessiterait l’établissement d’avenants, et le nombre de vols sera vérifié en cas d’audit."},{"$nulls":4},{"$f":"SUM(I51:I66)","v":0}]
[{"$nulls":8},{"$f":"ROUND(D51*H51,2)","v":0},null,null,"Pas de modification"]
[{"$nulls":8},{"$f":"ROUND(D52*H52,2)","v":0},null,null,"Pas de modification"]
[{"$nulls":8},0,null,null,"Pas de modification"]
[{"$nulls":8},0,null,null,"Pas de modification"]
[{"$nulls":8},0,null,null,"Pas de modification"]
[{"$nulls":8},0,null,null,"Pas de modification"]
[{"$nulls":8},0,null,null,"Pas de modification"]
[{"$nulls":8},{"$f":"ROUND(D58*H58,2)","v":0},null,null,"Pas de modification"]
[{"$nulls":8},0,null,null,"Pas de modification"]
[{"$nulls":8},0,null,null,"Pas de modification"]
[{"$nulls":8},{"$f":"ROUND(D61*H61,2)","v":0},null,null,"Pas de modification"]
[{"$nulls":8},0,null,null,"Pas de modification"]
[{"$nulls":8},0,null,null,"Pas de modification"]
[{"$nulls":8},0,null,null,"Pas de modification"]
[{"$nulls":8},0,null,null,"Pas de modification"]
[{"$nulls":8},0,null,null,"Pas de modification"]
[4,"Achat de matériels et équipements",null,{"$f":"IF('Données de base'!C20=\"Oui\",CONCATENATE(\"Aide pour remplir: \",TRIM(Exemple!P35)),\"\")","v":"Aide pour remplir: Les biens dont l’achat sera justifié par une seule et même facture doivent être portés sur une ligne du budget. Les matériels informatiques, p. ex., peuvent figurer sur une ligne ; dans ce cas, il faut préciser entre parenthèses les différents biens donc l'achat est prévu. Pour les médicaments et les pesticides et les engrais minéraux, davantage de détails sont nécessaires pour l’obtention de la validation."},{"$nulls":4},{"$f":"SUM(I68:I83)","v":0}]
[{"$nulls":8},{"$f":"ROUND(D68*H68,2)","v":0},null,null,"Pas de modification"]
[{"$nulls":8},{"$f":"ROUND(D69*H69,2)","v":0},null,null,"Pas de modification"]
[{"$nulls":8},0,null,null,"Pas de modification"]
[{"$nulls":8},0,null,null,"Pas de modification"]
[{"$nulls":8},{"$f":"ROUND(D72*H72,2)","v":0},null,null,"Pas de modification"]
[{"$nulls":8},0,null,null,"Pas de modification"]
[{"$nulls":8},0,null,null,"Pas de modification"]
[{"$nulls":8},0,null,null,"Pas de modification"]
[{"$nulls":8},0,null,null,"Pas de modification"]
[{"$nulls":8},0,null,null,"Pas de modification"]
[{"$nulls":8},0,null,null,"Pas de modification"]
[{"$nulls":8},0,null,null,"Pas de modification"]
[{"$nulls":8},0,null,null,"Pas de modification"]
[{"$nulls":8},0,null,null,"Pas de modification"]
[{"$nulls":8},0,null,null,"Pas de modification"]
[{"$nulls":8},0,null,null,"Pas de modification"]
[5,"Autres frais / Consommables",null,{"$f":"IF('Données de base'!C20=\"Oui\",CONCATENATE(\"Aide pour remplir: \",TRIM(Exemple!P46)),\"\")","v":"Aide pour remplir: Veuillez noter que les coûts indirects relèvent de la catégorie des frais administratifs généraux. Seuls des coûts directs peuvent être portés sur les lignes du budget.\nSi des frais de location sont indiqués, seuls les coûts directs, autrement dit les loyers nets, peuvent être calculés. Les frais annexes (charges) sont à prendre en compte comme coûts indirects et à intégrer aux frais administratifs généraux. \nContrairement aux biens matériels, que l’on utilise sur de longues périodes, les consommables sont des biens qui s’épuisent au fur et à mesure de l’usage, comme p. ex. le papier ou les recharges d’encre pour imprimante."},{"$nulls":4},{"$f":"SUM(I85:I100)","v":0}]
[{"$nulls":8},{"$f":"ROUND(D85*H85,2)","v":0},null,null,"Pas de modification"]
[{"$nulls":8},{"$f":"ROUND(D86*H86,2)","v":0},null,null,"Pas de modification"]
[{"$nulls":8},0,null,null,"Pas de modification"]
[{"$nulls":8},0,null,null,"Pas de modification"]
[{"$nulls":8},0,null,null,"Pas de modification"]
[{"$nulls":8},0,null,null,"Pas de modification"]
[{"$nulls":8},0,null,null,"Pas de modification"]
[{"$nulls":8},0,null,null,"Pas de modification"]
[{"$nulls":8},0,null,null,"Pas de modification"]
[{"$nulls":8},0,null,null,"Pas de modification"]
[{"$nulls":8},0,null,null,"Pas de modification"]
[{"$nulls":8},0,null,null,"Pas de modification"]
[{"$nulls":8},0,null,null,"Pas de modification"]
[{"$nulls":8},0,null,null,"Pas de modification"]
[{"$nulls":8},0,null,null,"Pas de modification"]
[{"$nulls":8},0,null,null,"Pas de modification"]
[6,"Fonds destinés au soutien direct de tiers destinataires\n(Remarque : cette ligne budgétaire concerne de préférence les contributions en nature à des tiers destinataires. Dans le cas de soutiens financières, il est nécessaire d'indiquer clairement comment les paiements et la réception des paiements seront prouvés. La procédure de sélection des tiers destinataires doit être expliquée en détail dans la description du projet.)",null,{"$f":"IF('Données de base'!C20=\"Oui\",CONCATENATE(\"Aide pour remplir: \",TRIM(Exemple!P57)),\"\")","v":"Aide pour remplir: Veuillez observer la remarque figurant dans la ligne du budget. Il faut s’entendre sur les justificatifs dans le budget et présenter les critères de sélection dans la description du projet. Important : il ne s’agit en l’occurrence que de destinataires à qui profite le projet du bénéficiaire dans le cadre, p. ex., d’une promotion de start-up, d’une promotion d’initiatives, de mesures « espèces contre travail », de concours de promotion, de bourses et autres. Il est nécessaire de s’entendre sur les justificatifs. Concernant les détails, il faut prendre conseil auprès de l'unité en charge de la gestion des contrats."},{"$nulls":4},{"$f":"SUM(I102:I107)","v":0},null,null,{"$f":"IF(L4=\"VE\",\"ACHTUNG: Kosten, die aufgrund von Währungsschwankungen entstehen, können nicht von der GIZ übernommen werden.\",\"\")","v":""}]
[null,"XXX (Cette ligne budgétaire est décomptée contre : ….)",{"$nulls":6},{"$f":"ROUND(D102*F102*H102,2)","v":0},null,null,"Pas de modification"]
[null,"XXX (Cette ligne budgétaire est décomptée contre : ….)",{"$nulls":6},0,null,null,"Pas de modification"]
[null,"XXX (Cette ligne budgétaire est décomptée contre : ….)",{"$nulls":6},0,null,null,"Pas de modification"]
[null,"XXX (Cette ligne budgétaire est décomptée contre : ….)",{"$nulls":6},0,null,null,"Pas de modification"]
[null,"XXX (Cette ligne budgétaire est décomptée contre : ….)",{"$nulls":6},0,null,null,"Pas de modification"]
[null,"XXX (Cette ligne budgétaire est décomptée contre : ….)",{"$nulls":6},0,null,null,"Pas de modification"]
[7,"Coûts proportionnels du projet qui sont générés localement (p. ex. IT, recherche)",null,{"$f":"IF('Données de base'!C20=\"Oui\",CONCATENATE(\"Aide pour remplir: \",TRIM(Exemple!P62)),\"\")","v":"Aide pour remplir: Cette ligne budgétaire est réservée aux organisations qui disposent d’une répartition ou d’une imputation des frais généraux dans leurs systèmes de comptabilité et peuvent en apporter la preuve en conséquence. Le type de justificatif est fixé pour chaque cas particulier. Un exemple concret est un justificatif exprimé en pourcentage, sur la base des frais généraux et des relevés d’heures.."},{"$nulls":4},{"$f":"SUM(I109:I111)","v":0}]
[{"$nulls":8},{"$f":"ROUND(D109*F109*H109,2)","v":0},null,null,"Pas de modification"]
[{"$nulls":8},{"$f":"ROUND(D110*F110*H110,2)","v":0},null,null,"Pas de modification"]
[{"$nulls":8},{"$f":"ROUND(D111*F111*H111,2)","v":0},null,null,"Pas de modification"]
[null,"Sous-total - Coûts directs",{"$nulls":6},{"$f":"I84+I67+I32+I5+I50+I101+I108","v":0}]
[8,"Frais administratifs généraux ",null,{"$f":"IF('Données de base'!C20=\"Oui\",CONCATENATE(\"Aide pour remplir: \",TRIM(Exemple!P66)),\"\")","v":"Aide pour remplir: Les frais administratifs généraux devraient s’élever à 0 % étant donné qu’ils sont normalement pris en charge par le bénéficiaire du financement en tant que contribution propre. Si une telle prise en charge n’est pas possible, la GIZ peut prendre en charge une petite partie des frais administratifs généraux. La nature et le montant des frais sont vérifiés le cas échéant par un·e expert·e-comptable. Si les frais généraux d'administration se rapportent à un plus petit nombre de lignes budgétaires, il est nécessaire d'en informer la gestion des contrats."},{"$nulls":4},{"$f":"I114","v":0}]
[null,"Frais administratifs généraux (pour les lignes budgétaires 1-X)",null,{"v":0,"d":"0.00%"},{"$nulls":3},{"$f":"I112","v":0},{"$f":"D114*H114","v":0},null,null,"Pas de modification"]
[null,"Sous-total - contribution financière  de la GIZ (sur présentation de justificatifs - jusqu’à concurrence de - )*\n(coûts directs + frais administratifs généraux)",{"$nulls":6},{"$f":"I112+I113","v":0}]
[null,"Contribution financière de la GIZ (sur présentation de justificatifs - jusqu’à concurrence de)",{"$nulls":6},{"$f":"I115","v":0}]
[]
[null,"* Toutes les lignes budgétaires (à l’exception des frais administratifs généraux) doivent faire l’objet d’un décompte établi sur la base de justificatifs."]
[]
[null,"À noter : dans les cas où des marchés passés pour des services externes et/ou des biens matériels et/ou des fournitures doivent être financés par les fonds de la GIZ, les directives applicables à la passation de marchés spécifiées dans les clauses du contrat doivent être respectées !"]
[]
[null,"Les recettes et les bénéfices du bénéficiaires tiers ne sont pas financés. Les facturations internes entre les unités organisationnelles du bénéficiaires tiers ne sont pas financées."]
[]
[null,"En cas d’avenants : veuillez procéder aux ajustements budgétaires sur la base du dernier budget convenu au contrat et noter les modifications en couleur. La GIZ ne peut pas prendre en charge les coûts dûs aux fluctuations monétaires (l'inflation)"]

{"sheet":"Exemple","index":3,"n_rows":87,"n_cols":16,"rows_kept":87,"merged":[[0,0,0,8],[3,1,3,7],[3,8,3,9],[4,3,4,7],[4,9,64,9],[4,15,8,15],[10,3,10,7],[10,15,19,15],[11,4,11,6],[12,4,12,6],[13,4,13,6],[14,4,14,6],[15,4,15,6],[16,4,16,6],[17,4,17,6],[18,4,18,6],[19,4,19,6],[20,4,20,6],[21,3,21,7],[21,15,28,15],[22,4,22,6],[23,4,23,6],[24,4,24,6],[25,4,25,6],[26,4,26,6],[27,4,27,6],[28,4,28,6],[29,3,29,7],[34,3,34,7],[34,15,43,15],[35,4,35,6],[36,4,36,6],[37,4,37,6],[38,4,38,6],[39,4,39,6],[40,4,40,6],[41,4,41,6],[42,4,42,6],[43,4,43,6],[44,4,44,6],[45,3,45,7],[45,15,53,15],[46,4,46,6],[47,4,47,6],[48,4,48,6],[49,4,49,6],[50,4,50,6],[51,4,51,6],[52,4,52,6],[53,4,53,6],[54,4,54,6],[55,4,55,6],[56,3,56,7],[56,15,59,15],[61,3,61,7],[61,15,63,15],[64,1,64,7],[65,15,66,15],[68,3,68,7],[68,15,70,15],[73,15,75,15],[78,1,78,7],[78,8,78,9],[80,1,80,10],[82,1,83,9],[84,1,84,9],[85,1,85,9],[86,1,87,9],[86,15,88,15]]}
["Budget / plan de financement - Annexe 1",{"$nulls":8},{"$f":"'Données de base'!C33","v":"00:00:00"},{"$nulls":5},"Remarques concernant le traitement :\nCet exemple a seulement valeur d’orientation pour l’onglet « Budget Financements ». "]
[]
[null,"Description","Code","Quantité / Nombre ","Unité (p. ex. personne, véhicule, salle, etc.)","Quantité / Nombre","Unité (p. ex. mois, jour, formation, etc.","Montant unitaire éligible en EUR (max.) \n (prix par unité) ","Total \nContribution financière de la GIZ\nen EUR (max.)","Contribution propre / Financement de tiers \nen EUR (max.) ",null,{"$f":"IF(#REF!=\"VE\",CONCATENATE(\"Bei Vertragsanpassungen:\",CHAR(10),\"hat sich diese Budgetzeile geändert?\"),\"\")","v":{"$error":"#REF!"}},{"$nulls":3},"Remarques générales : \nCe format de budget sert de base de décompte. Pour votre usage interne, n’hésitez pas à créer d’autres fichiers contenant des informations plus détaillées.\nTous les postes inscrits au budget doivent également figurer dans la description du projet afin que le lien avec le projet soit visible. \nLe tableau est pourvu de formules qui doivent être conservées.  \nVeuillez vous tenir au format à deux décimales. \nIl est recommandé d’arrondir les unités dans la mesure du possible. Les coûts sont convenus avec une valeur « max. ». "]
[null,{"$f":"IF('Données de base'!C20=\"Ja\",CONCATENATE(\"Hinweis: Blaue Felder durch \",IF('Données de base'!C20=\"\",\" Zuschussempfänger\",'Données de base'!C20),\" auszufüllen\"),\"\")","v":""},{"$nulls":6},{"$f":"IF('Données de base'!C20=\"Ja\",\"Hinweis: Wird automatisch ausgefüllt\",\"\")","v":""},null,null,{"$f":"IF('Données de base'!C22=\"Vertragsanpassung\",\"VE\",\"NOVE\")","v":"NOVE"},{"$nulls":3},"Remarques concernant l’établissement du budget "]
[1,"Personnel propre (désignation de la fonction)\n(Note 1 : uniquement le personnel de votre organisation ; \nla preuve des coûts de cette ligne budgétaire doit être fournie sous forme de fiches de salaire ou, en cas de financement proportionnel, sous forme de fiches de salaire accompagnées des relevés d'heures correspondants ; \nRemarque 2 : seuls les frais de personnel le (coût de revient - bruts de l'employeur) peuvent être imputés. Les suppléments tels que les charges générales du personnel, calculés au prorata du personnel, ne sont pas éligibles).",{"$nulls":6},{"$f":"SUM(I6:I10)","v":{"v":62200,"d":"62,200.00 €"}},"Une prise en charge partielle des lignes budgétaires  n'est pas possible pour la GIZ, à l’exception des frais de « personnel propre» qui peuvent être exprimés en pourcentage ainsi que de la catégorie « Frais de bureau au prorata » .\n\nLes autres coûts qui surviennent dans le cadre de la mise en œuvre du projet et qui ne doivent pas être pris en charge par la GIZ sont calculés séparément. Soit en tant que contribution propre, soit, si cela est pertinent, en tant que contribution contribution d'un tiers. ",null,{"$f":"IF(L4=\"VE\",\"ACHTUNG: Kosten, die aufgrund von Währungsschwankungen entstehen, können nicht von der GIZ übernommen werden.\",\"\")","v":""},{"$nulls":3},"La colonne « Montant unitaire éligible (max.) » doit toujours indiquer le salaire brut mensuel du employeur. Pour les emplois à temps partiel, indiquer le pourcentage à la colonne D. Veuillez indiquer quelles sont les coûts de personnel accessoires qui s’appliquent en vertu de la législation dans votre pays. En principe, les cotisations sociales et les paiements convenus dans le contrat de travail ou la convention collective peuvent être financés (les gratifications ou les primes d’intéressement au bénéfice sont en revanche exclues). Les coûts accessoires d’une autre nature doivent être discutés et vérifiés avant l’établissement du contrat et faire l’objet d’un commentaire dans la ligne budgétaire. Les contrats portant sur des petits boulots (« mini-jobs ») ou des jobs d’étudiant sont à affecter au poste Coûts de personnel, même s’il n’y a pas de cotisations sociales à payer.                                                                                                                                                                                         Si plusieurs personnes doivent être financées au prorata (p. ex. 3 personnes à raison de 75 %), veuillez augmenter le nombre de mois en conséquence et inscrire le nombre de personnes dans la description de la ligne budgétaire."]
[null,"Gestionnaire de projet",null,{"v":1,"d":"100%"},"personne ",20,"mois ",{"v":3000,"d":"3,000.00"},{"$f":"D6*F6*H6","v":{"v":60000,"d":"60,000.00 €"}}]
[null,"Gestionnaire financier·ère ",null,{"v":0.05,"d":"5%"},"personne ",20,"mois ",{"v":2200,"d":"2,200.00"},{"$f":"D7*F7*H7","v":{"v":2200,"d":"2,200.00 €"}}]
[{"$nulls":4},"personne ",null,"mois ",null,{"$f":"D8*F8*H8","v":0}]
[{"$nulls":4},"personne ",null,"mois ",null,{"$f":"D9*F9*H9","v":0}]
[{"$nulls":4},"personne ",null,"mois ",null,{"$f":"D10*F10*H10","v":0}]
[2,"Achat de prestations de services externes",{"$nulls":6},{"$f":"SUM(I12:I21)","v":{"v":7000,"d":"7,000.00 €"}},{"$nulls":6},"Indiquer le contenu de la prestation ; ne pas donner les détails du contrat (heures de travail, etc) ; ne mentionner que le nombre de contrats et la valeur prévue (les directives applicables à la passation de marchés citées dans les clauses du contrat doivent être respectées !) ; utiliser une ligne budgétaire par contrat ; tous les coûts occasionnés dans le cadre de l’exécution des prestations relevant d’un contrat de prestation de services (tels que formations, voyages, etc.) sont regroupés sur une ligne du budget.                                                                                                                                                                                                              Événements : les prestations fournies par le même prestataire doivent être regroupées sur une ligne du budget. (P. ex. : si la restauration et le site de l’événement sont proposés par un même hôtel, les frais correspondants sont à inscrire sur une ligne, et si les nuitées sont réservées dans un autre hôtel, ces frais doivent figurer sur une autre ligne). Les recettes que le bénéficiaire perçoit dans le cadre de l’événement ne peuvent pas être financées à partir du contrat (p. ex., loyer au titre de la location de ses propres locaux). Seuls sont financés les coûts qui peuvent être vraiment justifiés."]
[null,"Modération",null,1,"contrat ",null,null,{"v":5000,"d":"5,000.00"},{"$f":"D12*H12","v":{"v":5000,"d":"5,000.00 €"}}]
[null,"Frais de restauration et de location de salles",null,1,"contrat ",null,null,{"v":2000,"d":"2,000.00"},{"$f":"D13*H13","v":{"v":2000,"d":"2,000.00 €"}}]
[null,"Expert·e en héliotechnique",null,null,"contrat ",{"$nulls":3},0]
[null,"Expert·e en...",null,null,"contrat ",{"$nulls":3},0]
[null,"Personnel externe (qui n’est pas employé par le bénéficiaire en tant que personnel salarié assujetti à la sécurité sociale)",null,null,"contrat ",{"$nulls":3},0]
[null,"Marchés de conseil",null,null,"contrat ",{"$nulls":3},0]
[null,"Entreprises externes (transport en bus p. ex.)",null,null,"contrat ",{"$nulls":3},0]
[{"$nulls":4},"contrat ",{"$nulls":3},0]
[{"$nulls":4},"contrat ",{"$nulls":3},0]
[{"$nulls":4},"contrat ",{"$nulls":3},0]
[3,"Frais de transport / de voyage",{"$nulls":6},{"$f":"SUM(I23:I32)","v":{"v":4500,"d":"4,500.00 €"}},{"$nulls":6},"Les frais de voyage incluent généralement les frais de transport de tout type, les côuts réel des nuitées, les indemnités journalières de subsistance, les frais de visa. Les autres coûts doivent être indiqués à part.  Le décompte de ces frais est effectué sur la base de factures et/ou des directives du bénéficiaire relatives au remboursement des frais de mission et de déplacement et/ou de prescriptions légales (p. ex. loi fédérale sur les frais de voyage (Bundesreisekostengesetz). Une répartition en différents groupes de personnes n’est pas souhaitable.\n\nVeuillez ne pas mentionner de quantité pour les vols : tout écart nécessiterait l’établissement d’avenants, et le nombre de vols sera vérifié en cas d’audit."]
[null,"Vols internationaux",null,1,"unité",null,null,{"v":4000,"d":"4,000.00"},{"$f":"D23*H23","v":{"v":4000,"d":"4,000.00 €"}}]
[null,"Vols nationaux",null,1,"unité",null,null,{"v":500,"d":"500.00"},{"$f":"D24*H24","v":{"v":500,"d":"500.00 €"}}]
[null,"Frais occasionnés par les voyages internationaux (indemnités journalières/d’hébergement, moyens de transport, visas, vaccins requis)",{"$nulls":6},0]
[null,"Frais occasionnés par les voyages nationaux (indemnités journalières/d’hébergement, moyens de transport)",{"$nulls":6},0]
[null,"Frais de transport de marchandises",{"$nulls":6},0]
[null,"Frais de voyage des participant·e·s aux ateliers",{"$nulls":6},0]
[{"$nulls":8},0]
[null,"4. Co2 Kompensationen",{"$nulls":6},{"$f":"D30*F30*H30","v":0},null,"möglicherweise erstmal raus"]
[{"$nulls":8},{"$f":"D31*F31*H31","v":0}]
[{"$nulls":8},{"$f":"D32*F32*H32","v":0}]
[]
[]
[4,"Achat de matériels et équipements",{"$nulls":6},{"$f":"SUM(I36:I45)","v":{"v":4000,"d":"4,000.00 €"}},null,{"$f":"IF(I73>400000,1,0)+(IF(I35>(I73/2),1,0))","v":0},{"$nulls":4},"Les biens dont l’achat sera justifié par une seule et même facture doivent être portés sur une ligne du budget. Les matériels informatiques, p. ex., peuvent figurer sur une ligne ; dans ce cas, il faut préciser entre parenthèses les différents biens donc l'achat est prévu. Pour les médicaments et les pesticides et les engrais minéraux, davantage de détails sont nécessaires pour l’obtention de la validation. "]
[null,"Matériel informatique (ordinateur portable, imprimante, rétroprojecteur, accessoires)",null,1,"achat",null,null,{"v":4000,"d":"4,000.00"},{"$f":"D36*H36","v":{"v":4000,"d":"4,000.00 €"}}]
[null,"Équipement photographique (appareil photo et accessoires)",{"$nulls":6},{"$f":"D37*H37","v":0}]
[null,"Machine XY (indiquer précisément de quelle machine il s’agit, mais sans mentionner le modèle ni la marque !)",{"$nulls":6},0]
[null,"Mobilier (bureaux, chaises, armoires)",{"$nulls":6},0]
[null,"Indiquer précisément les véhicules et leur type :  p. ex. voiture électriques, SUV blindé, scooter, etc.",{"$nulls":6},0]
[null,"Téléphones portables",{"$nulls":6},0]
[{"$nulls":8},0]
[{"$nulls":8},0]
[{"$nulls":8},0]
[{"$nulls":8},0]
[5,"Autres frais / Consommables",{"$nulls":6},{"$f":"SUM(I47:I56)","v":{"v":100,"d":"100.00 €"}},{"$nulls":6},"Veuillez noter que les coûts indirects relèvent de la catégorie des frais administratifs généraux. Seuls des coûts directs peuvent être portés sur les lignes du budget.\nSi des frais de location sont indiqués, seuls les coûts directs, autrement dit les loyers nets, peuvent être calculés. Les frais annexes (charges) sont à prendre en compte comme coûts indirects et à intégrer aux frais administratifs généraux.                                                                      \nContrairement aux biens matériels, que l’on utilise sur de longues périodes, les consommables sont des biens qui s’épuisent au fur et à mesure de l’usage, comme p. ex. le papier ou les recharges d’encre pour imprimante."]
[null,"Fournitures de bureau (papier pour imprimante, recharges d’encre, matériel d’écriture)",null,1,"unité",null,null,{"v":100,"d":"100.00"},{"$f":"D47*H47","v":{"v":100,"d":"100.00 €"}}]
[null,"Logiciels informatiques, licences",{"$nulls":6},{"$f":"D48*H48","v":0}]
[null,"Matériel d’emballage pour xxx",{"$nulls":6},0]
[null,"Matériel de laboratoire",{"$nulls":6},0]
[null,"Produits d’hygiène",{"$nulls":6},0]
[null,"Outils",{"$nulls":6},0]
[null,"Eau",{"$nulls":6},0]
[null,"Dépliants / matériel publicitaire",{"$nulls":6},0]
[null,"Frais de téléphone, cartes téléphoniques, etc.",{"$nulls":6},0]
[null,"Location de bureaux au prorata, p. ex. 1 salle, xxx m2",{"$nulls":6},0]
[6,"Fonds destinés au soutien direct de tiers destinataires\n(Remarque : cette ligne budgétaire concerne de préférence les contributions en nature à des tiers destinataires. Dans le cas de soutiens financières, il est nécessaire d'indiquer clairement comment les paiements et la réception des paiements seront prouvés. La procédure de sélection des tiers destinataires doit être expliquée en détail dans la description du projet.)",{"$nulls":6},{"$f":"SUM(I58:I61)","v":{"v":600,"d":"600.00 €"}},{"$nulls":6},"Veuillez observer la remarque figurant dans la ligne du budget. Il faut s’entendre sur les justificatifs dans le budget et présenter les critères de sélection dans la description du projet. Important : il ne s’agit en l’occurrence que de destinataires à qui profite le projet du bénéficiaire dans le cadre, p. ex., d’une promotion de start-up, d’une promotion d’initiatives, de mesures « espèces contre travail », de concours de promotion, de bourses et autres. Il est nécessaire de s’entendre sur les justificatifs. Concernant les détails, il faut prendre conseil auprès de l'unité en charge de la gestion des contrats. "]
[null,"Mesure de mise en oeuvre «Cash for Work» (Décompte sur la base d'une liste de présence des participants, accusé de réception par signature ou empreinte digitale ; la procédure de sélection est décrite en détail dans la description du projet.)",null,10,"personne",20,"jours",{"v":3,"d":"3.00"},{"$f":"D58*F58*H58","v":{"v":600,"d":"600.00 €"}}]
[{"$nulls":8},{"$f":"D59*F59*H59","v":0}]
[{"$nulls":8},{"$f":"D60*F60*H60","v":0}]
[{"$nulls":8},{"$f":"D61*F61*H61","v":0}]
[7,"Coûts proportionnels du projet qui sont générés localement (p. ex. IT, recherche)",{"$nulls":6},{"$f":"SUM(I63:I64)","v":0},{"$nulls":6},"Cette ligne budgétaire est réservée aux organisations qui disposent d’une répartition ou d’une imputation des frais généraux dans leurs systèmes de comptabilité et peuvent en apporter la preuve en conséquence. Le type de justificatif est fixé pour chaque cas particulier. Un exemple concret est un justificatif exprimé en pourcentage, sur la base des frais généraux et des relevés d’heures.."]
[{"$nulls":4},"%",null,"unité",null,{"$f":"D63*F63*H63","v":0}]
[{"$nulls":8},{"$f":"D64*F64*H64","v":0}]
[null,"Sous-total - coûts directs",{"$nulls":6},{"$f":"I46+I35+I11+I5+I22+I30+I57","v":{"v":78400,"d":"78,400.00 €"}}]
[8,"Frais administratifs généraux ",{"$nulls":6},{"$f":"I67","v":{"v":3920,"d":"3,920.00 €"}},{"$nulls":6},"Les frais administratifs généraux devraient s’élever à 0 % étant donné qu’ils sont normalement pris en charge par le bénéficiaire du financement en tant que contribution propre. Si une telle prise en charge n’est pas possible, la GIZ peut prendre en charge une petite partie des frais administratifs généraux. La nature et le montant des frais sont vérifiés le cas échéant par un·e expert·e-comptable. Si les frais généraux d'administration se rapportent à un plus petit nombre de lignes budgétaires, il est nécessaire d'en informer la gestion des contrats. "]
[null,"Frais administratifs généraux (pour les lignes budgétaires 1-7)",null,{"v":0.05,"d":"5%"},{"$nulls":3},{"$f":"I65","v":{"v":78400,"d":"78,400.00"}},{"$f":"D67*H67","v":{"v":3920,"d":"3,920.00 €"}}]
[null,"Sous-total - contribution financière  de la GIZ (sur présentation de justificatifs - jusqu’à concurrence de - )*\n(coûts directs + frais administratifs généraux)",{"$nulls":6},{"$f":"I65+I66","v":{"v":82320,"d":"82,320.00 €"}}]
[9,"Transfert de fonds à des bénéficiaires tiers - un budget détaillé doit être soumis -",null,"",{"$nulls":11},"Il s’agit d'un transfert des fonds à un tiers bénéficiare (co-bénéficiaires). Ce sont des partenaires qui mettent en œuvre une partie du projet en toute autonomie. Il faut soumettre un budget séparé, et une évaluation des capacités commerciales et juridiques (portant seulement sur les critères personnalité juridique et statut d’utilité publique) doit être réalisée par le projet de la GIZ. "]
[null,"XYZ (nom du bénéficiaire final) ",null,1,"unité",1,"transfert",{"$f":"'Transfert du financement'!I126","v":{"v":0,"d":"0.00"}},{"$f":"D70*F70*H70","v":0}]
[null,"XYZ (nom du bénéficiaire final) ",null,1,"unité",1,"transfert",null,{"$f":"D71*F71*H71","v":0}]
[null,"XYZ (nom du bénéficiaire final) ",null,1,"unité",1,"transfert",null,{"$f":"D72*F72*H72","v":0},null,"Anteile in Prozent "]
[null,"Contribution financière de la GIZ (sur présentation de justificatifs - jusqu’à concurrence de)",{"$nulls":6},{"$f":"I68","v":{"v":82320,"d":"82,320.00 €"}},{"$f":"I73","v":{"v":82320,"d":"82,320.00 €"}},{"$f":"J73/$I$79","v":{"v":0.8458692971639951,"d":"84.59%"}}]
[{"$f":"10","v":10},"Contribution propre / Financement par des tiers",{"$nulls":7},{"$f":"SUM(J75:J77)","v":{"v":15000,"d":"15,000.00 €"}},{"$nulls":5},"N’indiquez ici que la valeur globale de la contribution propre / du financement par des tiers. Une description succincte des cofinancements doit être intégrée à la description du projet. "]
[null,"ABC (contribution propre)",null,1,"unité",1,"contribution ",{"v":5000,"d":"5,000.00"},null,{"$f":"H75","v":{"v":5000,"d":"5,000.00 €"}},{"$f":"J75/$I$79","v":{"v":0.05137690094533498,"d":"5.14%"}}]
[null,"DEF (financement par de tiers)",null,1,"unité",1,"contribution ",{"v":10000,"d":"10,000.00"},null,{"$f":"H76","v":{"v":10000,"d":"10,000.00 €"}},{"$f":"J76/$I$79","v":{"v":0.10275380189066996,"d":"10.28%"}}]
[{"$nulls":3},1,"unité",1,"contribution ",{"$f":"_xlfn.IFS('Données de base'!$C$9=\"Auswählen\", \"\",'Données de base'!$C$9>0,'Données de base'!G26, TRUE,\"\")","v":{"v":0,"d":"0.00"}},null,{"$f":"H77","v":0},{"$f":"IFERROR(J77/$I$79,\"\")","v":{"v":0,"d":"0.00%"}}]
[{"$nulls":3},1,"unité",1,"contribution ",{"$f":"_xlfn.IFS('Données de base'!$C$9=\"Auswählen\", \"\",'Données de base'!$C$9>0,'Données de base'!G27, TRUE,\"\")","v":{"v":0,"d":"0.00"}},null,{"$f":"H78","v":0},{"$f":"IFERROR(J78/$I$79,\"\")","v":{"v":0,"d":"0.00%"}}]
[null,"Le budget total du projet à financer : ",{"$nulls":6},{"$f":"I73+J74","v":{"v":97320,"d":"97,320.00 €"}},null,{"$f":"SUM(K73:K78)","v":{"v":1,"d":"100.00%"}}]
[]
[null,"* Toutes les lignes budgétaires (à l’exception des frais administratifs généraux) doivent faire l’objet d’un décompte établi sur la base de justificatifs."]
[]
[null,"À noter : dans les cas où des marchés passés pour des services externes et/ou des biens matériels et/ou des fournitures doivent être financés par les fonds de la GIZ, les directives applicables à la passation de marchés spécifiées dans les clauses du contrat doivent être respectées !"]
[]
[]
[null,"Les recettes et les bénéfices du bénéficiaire ne sont pas financés. Les facturations internes entre les unités organisationnelles du bénéficiaire ne sont pas financées."]
[null,"En cas d’avenants : veuillez procéder aux ajustements budgétaires sur la base du dernier budget convenu au contrat et noter les modifications en couleur. La GIZ ne peut pas prendre en charge les coûts dûs aux fluctuations monétaires.",{"$nulls":13},"Dans la demande de modification du contrat, il convient d’expliciter les redéploiements budgétaires. L’augmentation des coûts de personnel en particulier doit être assortie d’une justification. "]